bitfinex-derivatives/quotes_BTCF0:USTF0_20251103
["timestamp","ask_amount","ask_price","bid_price","bid_amount"]
[1762141701115,0.05743,108220.0,108210.0,0.56521209]
[1762141701506,0.05743,108220.0,108210.0,0.57526625]
[1762141701816,0.05743,108220.0,108210.0,0.54106613]
[1762141702816,0.05743,108220.0,108210.0,0.08654934]
[1762141703118,0.05743,108220.0,108210.0,0.007]
[1762141704112,0.05743,108220.0,108210.0,0.006]
[1762141704717,0.04417,108210.0,108200.0,0.40174934]
[1762141704919,0.03917,108210.0,108200.0,0.40174934]
[1762141705104,0.03917,108210.0,108200.0,0.33548]
[1762141705307,0.03917,108210.0,108200.0,0.01328]
[1762141705512,0.03917,108210.0,108200.0,0.33544]
[1762141705914,0.03917,108210.0,108200.0,0.34444]
[1762141706310,0.03917,108210.0,108200.0,0.4368638]
[1762141706619,0.05655,108220.0,108210.0,0.02328]
[1762141706813,0.05655,108220.0,108210.0,0.15539679]
[1762141707317,0.05655,108220.0,108210.0,0.24781199]
[1762141707807,0.05655,108240.0,108230.0,0.02328]
[1762141708014,0.03481,108220.0,108210.0,0.24781199]
[1762141708610,0.05655,108240.0,108230.0,0.02328]
[1762141709020,0.07055,108240.0,108230.0,0.02328]
[1762141710412,0.06755,108240.0,108230.0,0.02328]
[1762141710619,0.66755,108240.0,108230.0,0.02328]
[1762141711015,0.67055,108240.0,108230.0,0.02328]
[1762141711718,0.04329,108230.0,108220.0,0.3452]
[1762141712919,0.04329,108220.0,108210.0,0.07790934]
[1762141713218,0.05675,108220.0,108210.0,0.41146934]
[1762141713419,0.05675,108220.0,108210.0,0.02328]
[1762141713723,0.04329,108210.0,108200.0,0.08954934]
[1762141713918,0.04329,108210.0,108200.0,0.50389314]
[1762141714114,0.04329,108210.0,108200.0,0.02328]
[1762141714317,0.04229,108210.0,108200.0,0.08954934]
[1762141714924,0.04229,108210.0,108200.0,0.09054934]
[1762141716720,0.04229,108210.0,108200.0,0.07890934]
[1762141717325,0.04229,108210.0,108200.0,0.09154934]
[1762141717818,0.04229,108210.0,108200.0,0.001]
[1762141718125,0.04529,108210.0,108200.0,0.04977673]
[1762141718425,0.64529,108210.0,108200.0,0.04977673]
[1762141718624,0.77740679,108210.0,108200.0,0.04977673]
[1762141721324,0.64529,108210.0,108200.0,0.04977673]
[1762141721715,0.04529,108210.0,108200.0,0.07505673]
[1762141722323,0.04529,108210.0,108200.0,0.06241673]
[1762141722520,0.04529,108210.0,108200.0,0.04977673]
[1762141722915,0.05675,108200.0,108190.0,0.04977673]
[1762141723117,0.18886679,108200.0,108190.0,0.04977673]
[1762141723420,0.78886679,108200.0,108190.0,0.04977673]
[1762141723621,0.04329,108190.0,108180.0,0.04988142]
[1762141724324,0.04229,108190.0,108180.0,0.04988142]
[1762141724922,0.04229,108190.0,108180.0,0.05188142]
[1762141725127,0.04229,108190.0,108180.0,0.05388142]
[1762141726230,0.04229,108190.0,108180.0,0.08116142]
[1762141726424,0.04229,108190.0,108180.0,0.03138469]
[1762141726617,0.04229,108190.0,108180.0,0.08116142]
[1762141726813,0.04229,108190.0,108180.0,0.03138469]
[1762141727019,0.04229,108190.0,108180.0,0.08116142]
[1762141727324,0.04229,108190.0,108180.0,0.03138469]
[1762141727530,0.04229,108190.0,108180.0,0.08116142]
[1762141727823,0.04229,108190.0,108180.0,0.03138469]
[1762141728028,0.04229,108190.0,108180.0,0.00410469]
[1762141728228,0.04229,108190.0,108180.0,0.05388142]
[1762141728423,0.04229,108190.0,108180.0,0.03138469]
[1762141729230,0.04229,108190.0,108180.0,0.08116142]
[1762141729622,0.04229,108190.0,108180.0,0.21327821]
[1762141730023,0.04229,108190.0,108180.0,0.08116142]
[1762141730727,0.057,108200.0,108190.0,0.02728]
[1762141731932,0.04354,108190.0,108180.0,0.07916142]
[1762141732433,0.04354,108190.0,108180.0,0.02938469]
[1762141732733,0.04354,108190.0,108180.0,0.02738469]
[1762141733432,0.04354,108190.0,108180.0,0.03138469]
[1762141734630,0.057,108200.0,108190.0,0.02728]
[1762141734929,0.057,108200.0,108190.0,0.20910708]
[1762141735520,0.057,108200.0,108190.0,0.30153938]
[1762141735735,0.01346,108200.0,108190.0,0.31809843]
[1762141735934,0.01346,108200.0,108190.0,0.25182909]
[1762141736228,0.01346,108200.0,108190.0,0.31809843]
[1762141736435,0.03532,108200.0,108190.0,0.22566613]
[1762141736936,0.03532,108200.0,108190.0,0.31809843]
[1762141737235,0.06655214,108220.0,108210.0,0.02728]
[1762141737439,0.057,108220.0,108210.0,0.02728]
[1762141738427,0.057,108220.0,108210.0,0.07698952]
[1762141739036,0.058,108220.0,108210.0,0.04970952]
[1762141739236,0.061,108220.0,108210.0,0.04970952]
[1762141740439,0.79311679,108220.0,108210.0,0.04970952]
[1762141740740,0.05719,108200.0,108190.0,0.07698952]
[1762141742032,0.05719,108200.0,108190.0,0.04970952]
[1762141742238,0.05719,108200.0,108190.0,0.05370952]
[1762141742440,0.78930679,108200.0,108190.0,0.05370952]
[1762141743134,0.65719,108200.0,108190.0,0.002]
[1762141743337,0.04354,108190.0,108180.0,0.00010469]
[1762141743638,0.04354,108190.0,108180.0,0.04989463]
[1762141743839,0.04354,108190.0,108180.0,0.07717463]
[1762141744829,0.04354,108190.0,108180.0,0.06353463]
[1762141745026,0.04354,108190.0,108180.0,0.05189463]
[1762141745327,0.04354,108190.0,108180.0,0.05389463]
[1762141745523,0.04354,108190.0,108180.0,0.06753463]
[1762141746031,0.04354,108190.0,108180.0,0.09765403]
[1762141746231,0.05719,108200.0,108190.0,0.1197123]
[1762141746429,0.05719,108200.0,108190.0,0.2092029]
[1762141746630,0.05719,108200.0,108190.0,0.07708611]
[1762141746937,0.05719,108200.0,108190.0,0.06344611]
[1762141747144,0.05719,108200.0,108190.0,0.09354934]
[1762141748231,0.05719,108200.0,108190.0,0.06626934]
[1762141748543,0.04354,108190.0,108180.0,0.06637403]
[1762141749336,0.04354,108190.0,108180.0,0.09365403]
[1762141749643,0.04354,108190.0,108180.0,0.06837403]
[1762141749939,0.04354,108190.0,108180.0,0.07037403]
[1762141750637,0.04354,108190.0,108180.0,0.09765403]
[1762141750846,0.04354,108190.0,108180.0,0.32221162]
[1762141751028,0.05719,108200.0,108190.0,0.02728]
[1762141751228,0.18930679,108200.0,108190.0,0.06642939]
[1762141751539,0.18930679,108200.0,108190.0,0.04982283]
[1762141751739,0.05719,108200.0,108190.0,0.04982283]
[1762141752734,0.18930679,108200.0,108190.0,0.04982283]
[1762141753632,0.05719,108200.0,108190.0,0.06346283]
[1762141753939,0.05719,108200.0,108190.0,0.04982283]
[1762141754740,0.18930679,108200.0,108190.0,0.04982283]
[1762141755343,0.51106679,108200.0,108190.0,0.04982283]
[1762141756442,0.97895,108200.0,108190.0,0.04982283]
[1762141757951,0.97895,108200.0,108190.0,0.06346283]
[1762141758139,0.97895,108200.0,108190.0,0.07710283]
[1762141758636,0.05719,108200.0,108190.0,0.07710283]
[1762141758842,0.05719,108200.0,108190.0,0.02728]
[1762141760150,0.04399,108190.0,108180.0,0.07720752]
[1762141760553,0.04399,108190.0,108180.0,0.04992752]
[1762141761146,0.96575,108190.0,108180.0,0.04992752]
[1762141761344,0.04399,108160.0,108150.0,0.12716837]
[1762141761551,0.05583,108160.0,108150.0,0.12716837]
[1762141761747,0.05583,108160.0,108150.0,0.12729658]
[1762141762145,0.05783,108180.0,108170.0,0.04424]
[1762141762352,0.04409755,108180.0,108170.0,0.04424]
[1762141763761,0.02168755,108180.0,108170.0,0.04424]
[1762141764048,0.05793755,108180.0,108170.0,0.04424]
[1762141764258,0.05793755,108180.0,108170.0,0.05124]
[1762141764954,0.06747498,108180.0,108170.0,0.05124]
[1762141765358,0.06747498,108180.0,108170.0,0.007]
[1762141766152,0.66747498,108180.0,108170.0,0.007]
[1762141767158,1.09811547,108180.0,108170.0,0.007]
[1762141767354,1.09811547,108180.0,108150.0,0.0664358]
[1762141767355,0.05787,108160.0,108150.0,0.0664358]
[1762141767655,0.25739049,108160.0,108150.0,0.0664358]
[1762141767860,0.25739049,108160.0,108130.0,0.43785972]
[1762141767861,0.05787,108140.0,108130.0,0.11040836]
[1762141768157,0.05798005,108140.0,108130.0,0.08807836]
[1762141768354,0.05798005,108140.0,108130.0,0.06638836]
[1762141768554,0.04435,108130.0,108120.0,6.999e-05]
[1762141769365,0.36611,108130.0,108120.0,6.999e-05]
[1762141769663,0.04435,108130.0,108120.0,0.04408999]
[1762141769868,0.36611,108130.0,108120.0,0.05744999]
[1762141770168,0.05035,108130.0,108120.0,6.999e-05]
[1762141770768,0.05335,108130.0,108120.0,6.999e-05]
[1762141774471,0.65335,108130.0,108120.0,6.999e-05]
[1762141774865,0.88455,108130.0,108120.0,6.999e-05]
[1762141775671,1.08407049,108130.0,108120.0,6.999e-05]
[1762141775873,1.08407049,108130.0,108080.0,0.31485585]
[1762141776171,0.33548,108120.0,108080.0,0.31485585]
[1762141776366,0.33548,108120.0,108090.0,0.0925175]
[1762141776571,0.33548,108120.0,108080.0,0.11533636]
[1762141776773,0.33548,108120.0,108080.0,0.31485685]
[1762141776980,0.04445839,108110.0,108100.0,0.04402]
[1762141777566,0.04445839,108110.0,108100.0,0.1498893]
[1762141777764,0.02295839,108110.0,108100.0,0.05738]
[1762141777969,0.02295839,108110.0,108100.0,0.04402]
[1762141777970,0.04445839,108110.0,108100.0,0.04402]
[1762141779278,0.04445839,108110.0,108100.0,0.05738]
[1762141780176,0.04445839,108110.0,108100.0,0.1498893]
[1762141780377,0.02295839,108110.0,108100.0,0.1498893]
[1762141780571,0.00010839,108110.0,108100.0,0.1498893]
[1762141780964,0.04445839,108110.0,108100.0,0.05738]
[1762141781369,0.04445839,108110.0,108100.0,0.04402]
[1762141782179,0.04445839,108110.0,108100.0,0.05738]
[1762141782373,0.13695909,108110.0,108100.0,0.05738]
[1762141784780,0.1368678,108090.0,108080.0,0.04402]
[1762141784986,0.1368678,108090.0,108080.0,0.02169]
[1762141785980,0.1368678,108090.0,108080.0,0.06204]
[1762141786176,0.1368678,108090.0,108080.0,0.05016]
[1762141786374,0.1368678,108090.0,108080.0,0.02988]
[1762141786578,0.14655411,108090.0,108080.0,0.05135]
[1762141787483,0.14655411,108090.0,108080.0,0.06523]
[1762141787682,0.14655411,108090.0,108080.0,0.05135]
[1762141788573,0.14655411,108090.0,108080.0,0.007]
[1762141788880,0.1368678,108090.0,108080.0,0.06523]
[1762141789279,0.1153678,108090.0,108080.0,0.1577564]
[1762141789485,0.0925178,108090.0,108080.0,0.1577564]
[1762141789681,0.136593,108100.0,108090.0,0.04435]
[1762141790678,0.136593,108100.0,108090.0,0.1368678]
[1762141790979,0.092513,108100.0,108090.0,0.04835]
[1762141791385,0.114743,108100.0,108090.0,0.04835]
[1762141791877,0.114743,108100.0,108090.0,0.1408678]
[1762141792387,0.114743,108100.0,108090.0,0.04835]
[1762141792580,0.114743,108100.0,108090.0,0.1408679]
[1762141792787,0.00010839,108110.0,108100.0,0.1507393]
[1762141792986,0.04418839,108110.0,108100.0,0.05823]
[1762141793384,0.00010839,108110.0,108100.0,0.35025979]
[1762141793581,0.00010839,108110.0,108100.0,0.25775049]
[1762141794085,0.00010839,108110.0,108100.0,0.35025979]
[1762141794589,0.00010839,108110.0,108100.0,0.1507393]
[1762141794789,0.00010839,108110.0,108100.0,0.05823]
[1762141795489,0.02233839,108110.0,108100.0,0.05823]
[1762141795987,0.04418839,108110.0,108100.0,0.05823]
[1762141796582,0.02233839,108110.0,108100.0,0.1507394]
[1762141796777,0.00010839,108110.0,108100.0,0.1507394]
[1762141796981,0.00010839,108110.0,108100.0,0.4726994]
[1762141797887,0.04418839,108110.0,108100.0,0.38019]
[1762141798586,0.04418839,108110.0,108100.0,0.05823]
[1762141799696,0.13668919,108110.0,108100.0,0.05823]
[1762141800791,0.13668919,108110.0,108100.0,0.04435]
[1762141801093,0.1365978,108090.0,108080.0,0.12461836]
[1762141801292,0.1365978,108090.0,108080.0,0.11073836]
[1762141801293,0.12155923,108090.0,108080.0,0.11073836]
[1762141802090,0.12155923,108090.0,108080.0,0.12416836]
[1762141802301,0.12155923,108090.0,108080.0,0.11073836]
[1762141802889,0.12155923,108090.0,108080.0,0.13116836]
[1762141803099,0.12155923,108090.0,108080.0,0.22369476]
[1762141803100,0.07747923,108090.0,108080.0,0.22369476]
[1762141803593,0.07747923,108090.0,108080.0,0.1573064]
[1762141804295,0.00010839,108110.0,108080.0,0.1573064]
[1762141804491,0.00010839,108110.0,108100.0,0.05823]
[1762141804692,0.02233839,108110.0,108100.0,0.05823]
[1762141804991,0.04418839,108110.0,108100.0,0.05823]
[1762141806493,0.00010839,108110.0,108100.0,0.1507393]
[1762141806998,0.02233839,108110.0,108100.0,0.1507393]
[1762141807198,0.00010839,108110.0,108100.0,0.4926993]
[1762141807998,0.00010839,108110.0,108100.0,0.4726993]
[1762141808700,0.13668909,108110.0,108100.0,0.38019]
[1762141809099,0.13668909,108110.0,108100.0,0.04435]
[1762141809601,0.13668909,108110.0,108100.0,0.05823]
[1762141809788,0.09260909,108110.0,108100.0,0.05823]
[1762141809994,0.09260909,108110.0,108100.0,0.1507393]
[1762141810395,0.00010839,108110.0,108100.0,0.1507393]
[1762141810900,0.09260919,108110.0,108100.0,0.35025979]
[1762141811101,0.09260919,108110.0,108100.0,0.41664815]
[1762141811300,0.11483919,108110.0,108100.0,0.25775049]
[1762141811502,0.13668919,108110.0,108100.0,0.25775049]
[1762141811804,0.13668919,108110.0,108100.0,0.35025979]
[1762141811990,0.09260909,108110.0,108100.0,0.35025979]
[1762141812193,0.13668909,108110.0,108100.0,0.12461836]
[1762141812702,0.00010839,108110.0,108100.0,0.21712766]
[1762141813095,0.09260909,108110.0,108100.0,0.21712766]
[1762141813295,0.00010839,108110.0,108100.0,0.21712766]
[1762141815104,0.00010839,108110.0,108100.0,0.69836766]
[1762141815302,0.150278,108160.0,108150.0,0.04513]
[1762141816396,0.1141165,108150.0,108140.0,0.01317]
[1762141816601,0.1367665,108150.0,108140.0,0.1507751]
[1762141816899,0.1367665,108150.0,108140.0,0.0583]
[1762141818202,0.13684373,108150.0,108140.0,0.0583]
[1762141818403,0.13684373,108150.0,108140.0,0.1507751]
[1762141818607,0.13684373,108150.0,108140.0,0.28308654]
[1762141818906,0.13884373,108150.0,108140.0,0.28308654]
[1762141819107,0.14184373,108150.0,108140.0,0.0583]
[1762141819601,0.0443,108130.0,108120.0,0.34949391]
[1762141819807,0.0443,108130.0,108120.0,0.4927106]
[1762141819996,0.0443,108140.0,108130.0,0.1376136]
[1762141820193,0.0581,108140.0,108130.0,0.04513]
[1762141821202,0.0443,108140.0,108130.0,0.1376136]
[1762141821409,0.04637723,108150.0,108140.0,0.0583]
[1762141821610,0.04437723,108150.0,108140.0,0.0583]
[1762141821805,0.0443,108140.0,108130.0,0.0221]
[1762141822012,0.0581,108140.0,108130.0,0.04513]
[1762141822408,0.0443,108140.0,108130.0,0.04513]
[1762141822608,0.0581,108140.0,108130.0,0.04513]
[1762141823304,0.02472723,108150.0,108140.0,0.0583]
[1762141823504,0.04737723,108150.0,108140.0,0.0583]
[1762141824213,0.04437723,108150.0,108140.0,0.0583]
[1762141824713,0.02172723,108150.0,108140.0,0.28308644]
[1762141825008,0.00307723,108150.0,108140.0,0.60496644]
[1762141825200,0.00607723,108150.0,108140.0,0.60496644]
[1762141825406,0.00507723,108150.0,108140.0,0.62496644]
[1762141826014,0.09754373,108150.0,108140.0,0.60496644]
[1762141826312,0.14162373,108150.0,108140.0,0.51249144]
[1762141826507,0.09754373,108150.0,108140.0,0.60496644]
[1762141826712,0.00507723,108150.0,108140.0,0.62496644]
[1762141827214,0.1136335,108170.0,108160.0,0.1470079]
[1762141827514,0.1365335,108170.0,108160.0,0.50870144]
[1762141827705,0.1365335,108170.0,108160.0,0.37639]
[1762141828109,0.1136335,108170.0,108160.0,0.4688479]
[1762141828308,0.0924535,108170.0,108160.0,0.4783775]
[1762141828611,0.1064535,108170.0,108160.0,0.4783775]
[1762141829220,0.014,108170.0,108160.0,0.61068894]
[1762141829918,0.014,108170.0,108160.0,0.66068894]
[1762141830124,0.05787,108200.0,108190.0,0.04536]
[1762141830709,0.05743,108180.0,108170.0,0.04536]
[1762141830913,0.04408,108180.0,108170.0,0.4596494]
[1762141831123,0.02323892,108200.0,108170.0,0.3672]
[1762141831310,0.05743,108180.0,108170.0,0.3672]
[1762141831510,0.05743,108180.0,108170.0,0.04536]
[1762141831717,0.05743,108180.0,108170.0,0.3672]
[1762141831917,0.05743,108180.0,108170.0,0.02281]
[1762141832118,0.04408,108170.0,108160.0,0.33487]
[1762141833323,0.04908,108170.0,108160.0,0.33487]
[1762141833630,0.04908,108170.0,108160.0,0.37799]
[1762141834424,0.005,108170.0,108160.0,0.60375934]
[1762141834733,0.06731892,108200.0,108190.0,0.04536]
[1762141835132,0.06731892,108200.0,108170.0,0.22476074]
[1762141835133,0.0924409,108180.0,108170.0,0.27012074]
[1762141835932,0.0924409,108180.0,108170.0,0.17767144]
[1762141836237,0.0924409,108180.0,108170.0,0.27012084]
[1762141836428,0.0974409,108180.0,108170.0,0.17767144]
[1762141836931,0.1186209,108180.0,108170.0,0.17767144]
[1762141837135,0.1608709,108180.0,108170.0,0.04536]
[1762141840245,0.1548709,108180.0,108170.0,0.04536]
[1762141841440,0.1498709,108180.0,108170.0,0.04536]
[1762141841843,0.1365209,108180.0,108170.0,0.1378094]
[1762141842047,0.1136209,108180.0,108170.0,0.17767144]
[1762141842242,0.1498709,108180.0,108170.0,0.17767144]
[1762141842447,0.1498709,108180.0,108170.0,0.04536]
[1762141842946,0.1498709,108180.0,108170.0,0.04736]
[1762141844147,0.1498709,108180.0,108170.0,0.04836]
[1762141845146,0.1365209,108180.0,108170.0,0.1408094]
[1762141845347,0.1365209,108180.0,108170.0,0.04836]
[1762141845348,0.1497309,108180.0,108170.0,0.04836]
[1762141846952,0.1497309,108180.0,108170.0,0.04636]
[1762141847247,0.1365209,108180.0,108170.0,0.04636]
[1762141847441,0.0924409,108180.0,108170.0,0.27012084]
[1762141847644,0.16074272,108200.0,108190.0,0.0453]
[1762141847851,0.18306804,108200.0,108190.0,0.0453]
[1762141848155,0.05829,108190.0,108180.0,0.0453]
[1762141849748,0.05829,108190.0,108180.0,0.0473]
[1762141850246,0.05829,108190.0,108180.0,0.05938]
[1762141850447,0.04508,108190.0,108180.0,0.05938]
[1762141850654,0.04508,108200.0,108190.0,0.05922]
[1762141850952,0.05829,108200.0,108190.0,0.05922]
[1762141851745,0.05829,108200.0,108190.0,0.0453]
[1762141851954,0.06029,108200.0,108190.0,0.0453]
[1762141852644,0.04508,108190.0,108180.0,0.3791]
[1762141853151,0.04508,108190.0,108180.0,0.36702]
[1762141854050,0.04508,108190.0,108180.0,0.36802]
[1762141854440,0.04508,108190.0,108180.0,0.02426]
[1762141854640,0.04508,108190.0,108180.0,0.0463]
[1762141855050,0.04508,108190.0,108180.0,0.0473]
[1762141855256,0.77739144,108190.0,108180.0,0.002]
[1762141855745,0.78139144,108190.0,108180.0,0.001]
[1762141856148,0.64908,108190.0,108180.0,0.001]
[1762141856547,0.04508,108180.0,108170.0,0.11169187]
[1762141857854,0.04608,108180.0,108170.0,0.11169187]
[1762141858352,0.04708,108180.0,108170.0,0.11169187]
[1762141859457,0.0598,108180.0,108170.0,0.11169187]
[1762141859749,0.0578,108180.0,108170.0,0.12761187]
[1762141859954,0.04508,108180.0,108170.0,0.12761187]
[1762141860152,0.04508,108180.0,108170.0,0.22006117]
[1762141860354,0.04508,108190.0,108180.0,0.05922]
[1762141860659,0.04508,108200.0,108190.0,0.05922]
[1762141860849,0.05829,108200.0,108190.0,0.0453]
[1762141862254,0.06229,108200.0,108190.0,0.0453]
[1762141863051,0.01821,108200.0,108180.0,0.02326]
[1762141863361,0.04508,108190.0,108180.0,0.36698]
[1762141863758,0.04508,108180.0,108170.0,0.08965187]
[1762141864064,0.04508,108180.0,108170.0,0.43337187]
[1762141864250,0.04408,108180.0,108170.0,0.43337187]
[1762141864450,0.04408,108180.0,108170.0,0.36698]
[1762141864858,0.04408,108180.0,108170.0,0.0453]
[1762141865159,0.04408,108180.0,108170.0,0.11577633]
[1762141865860,0.04508,108180.0,108170.0,0.11377633]
[1762141866358,0.04508,108180.0,108170.0,0.11177633]
[1762141866559,0.04608,108180.0,108170.0,0.11177633]
[1762141866861,0.04608,108180.0,108170.0,0.06647633]
[1762141867157,0.04508,108180.0,108170.0,0.11277633]
[1762141867344,0.04408,108180.0,108170.0,0.11377633]
[1762141867657,0.04508,108180.0,108170.0,0.11277633]
[1762141868151,0.04508,108180.0,108170.0,0.11177633]
[1762141868359,0.04608,108180.0,108170.0,0.11177633]
[1762141869558,0.0586,108180.0,108170.0,0.11177633]
[1762141870449,0.05829,108170.0,108160.0,0.11177633]
[1762141871258,0.05829,108170.0,108160.0,0.06647633]
[1762141871458,0.19060144,108170.0,108160.0,0.06647633]
[1762141871658,0.19060144,108170.0,108160.0,0.001]
[1762141871960,0.79060144,108170.0,108160.0,0.001]
[1762141872352,0.05694,108150.0,108140.0,0.08973633]
[1762141872861,0.05694,108150.0,108140.0,0.11177633]
[1762141873571,0.05694,108150.0,108140.0,0.12177633]
[1762141874762,0.05694,108150.0,108140.0,0.0553]
[1762141875356,0.04508,108150.0,108140.0,0.06444]
[1762141875760,0.05776,108150.0,108140.0,0.06444]
[1762141875953,0.05776,108150.0,108140.0,0.0553]
[1762141876762,0.05776,108150.0,108140.0,0.06887]
[1762141876968,0.04508,108150.0,108140.0,0.06887]
[1762141877172,0.05776,108150.0,108140.0,0.06887]
[1762141877868,0.05776,108150.0,108140.0,0.0553]
[1762141878365,0.04508,108150.0,108140.0,0.06479]
[1762141879272,0.06718597,108160.0,108150.0,0.05699]
[1762141879569,0.06718597,108160.0,108150.0,0.04342]
[1762141879966,0.05841,108150.0,108140.0,0.05342]
[1762141880269,0.05841,108150.0,108140.0,0.04642]
[1762141880471,0.05441,108150.0,108140.0,0.04642]
[1762141881469,0.05441,108150.0,108140.0,0.04342]
[1762141881665,0.05241,108150.0,108140.0,0.04342]
[1762141882266,0.05241,108150.0,108140.0,0.05142]
[1762141884374,0.05241,108150.0,108140.0,0.06499]
[1762141884576,0.05241,108150.0,108140.0,0.157465]
[1762141884765,0.03973,108150.0,108140.0,0.157465]
[1762141885072,0.03973,108150.0,108140.0,0.06499]
[1762141886368,0.04555,108160.0,108150.0,0.05774]
[1762141886767,0.04555,108170.0,108160.0,0.05774]
[1762141886970,0.05872,108170.0,108160.0,0.04392]
[1762141887269,0.1379995,108170.0,108160.0,0.05774]
[1762141888465,0.1389995,108170.0,108160.0,0.05774]
[1762141888669,0.1158295,108170.0,108160.0,0.05774]
[1762141888871,0.1389995,108170.0,108160.0,0.05774]
[1762141889474,0.1399995,108170.0,108160.0,0.05774]
[1762141892373,0.1399995,108170.0,108160.0,0.1501979]
[1762141892570,0.0944495,108170.0,108160.0,0.1501979]
[1762141892880,0.1168295,108170.0,108160.0,0.05774]
[1762141893081,0.1399995,108170.0,108160.0,0.05774]
[1762141894569,0.1399995,108170.0,108160.0,0.150198]
[1762141894773,0.1399995,108170.0,108160.0,0.05774]
[1762141895571,0.002,108170.0,108160.0,0.150198]
[1762141895974,0.0944495,108170.0,108160.0,0.21667433]
[1762141896376,0.002,108170.0,108160.0,0.21667433]
[1762141896575,0.0944495,108170.0,108160.0,0.21667433]
[1762141896985,0.0934495,108170.0,108160.0,0.21667433]
[1762141897176,0.0934495,108170.0,108160.0,0.21767433]
[1762141897574,0.0924495,108170.0,108160.0,0.21767433]
[1762141897777,0.1379995,108170.0,108160.0,0.12721633]
[1762141898072,0.1379995,108170.0,108160.0,0.21967443]
[1762141898269,0.1379976,108180.0,108170.0,0.01382]
[1762141898479,0.1379976,108180.0,108170.0,0.05774]
[1762141898678,0.1511676,108180.0,108170.0,0.05774]
[1762141899479,0.1389976,108180.0,108170.0,0.05774]
[1762141900382,0.1399976,108180.0,108170.0,0.05774]
[1762141901280,0.1531676,108180.0,108170.0,0.05774]
[1762141901786,0.1531676,108180.0,108170.0,0.04392]
[1762141902383,0.1531676,108180.0,108170.0,0.05774]
[1762141902578,0.1399976,108180.0,108170.0,0.05774]
[1762141902783,0.1531676,108180.0,108170.0,0.05774]
[1762141905274,0.03546,108170.0,108160.0,0.11240633]
[1762141905472,0.05831,108170.0,108160.0,0.11240633]
[1762141905682,0.05831,108170.0,108160.0,0.04593]
[1762141906281,0.05831,108160.0,108150.0,0.44786633]
[1762141906881,0.05631,108160.0,108150.0,0.11240633]
[1762141907087,0.05631,108160.0,108150.0,0.08956633]
[1762141907486,0.05631,108160.0,108150.0,0.11240633]
[1762141907690,0.05531,108160.0,108150.0,0.13023633]
[1762141908383,0.05531,108160.0,108150.0,0.11340633]
[1762141908584,0.05531,108160.0,108150.0,0.11540633]
[1762141910991,0.05531,108160.0,108150.0,0.12823633]
[1762141912190,0.04218,108160.0,108150.0,0.12823633]
[1762141912486,0.05531,108160.0,108150.0,0.12823633]
[1762141912898,0.05531,108160.0,108150.0,0.06947633]
[1762141913186,0.66502929,108160.0,108150.0,0.003]
[1762141915593,0.98662929,108160.0,108150.0,0.003]
[1762141915983,0.38662929,108160.0,108150.0,0.04893]
[1762141916182,0.06502929,108160.0,108150.0,0.04893]
[1762141916687,0.06502929,108160.0,108150.0,0.02609]
[1762141917286,0.06502929,108160.0,108150.0,0.04893]
[1762141918491,0.06502929,108160.0,108150.0,0.06176]
[1762141918683,0.05531,108160.0,108150.0,0.06176]
[1762141918888,0.04218,108160.0,108150.0,0.1542266]
[1762141919089,0.04218,108160.0,108150.0,0.06176]
[1762141919489,0.04218,108160.0,108150.0,0.12823633]
[1762141919794,0.04218,108160.0,108150.0,0.11540633]
[1762141919795,0.05531,108160.0,108150.0,0.11540633]
[1762141919990,0.05531,108160.0,108150.0,0.06947633]
[1762141920192,0.05531,108160.0,108150.0,0.003]
[1762141921082,0.05531,108160.0,108150.0,0.04893]
[1762141921486,0.06483853,108160.0,108150.0,0.04893]
[1762141922486,0.17775754,108160.0,108150.0,0.003]
[1762141922993,0.77775754,108160.0,108150.0,0.003]
[1762141924193,0.66483853,108160.0,108150.0,0.003]
[1762141924488,0.77775754,108160.0,108150.0,0.003]
[1762141924689,0.05622,108140.0,108130.0,0.06647633]
[1762141924992,0.16913901,108140.0,108130.0,0.06647633]
[1762141925298,0.0579,108130.0,108120.0,0.04600068]
[1762141925704,0.0579,108130.0,108120.0,0.05883068]
[1762141925994,0.003,108140.0,108130.0,0.1512436]
[1762141926498,0.002,108140.0,108130.0,0.1512436]
[1762141926798,0.002,108140.0,108130.0,0.21771993]
[1762141927198,0.006,108140.0,108130.0,0.21771993]
[1762141927795,0.006,108140.0,108130.0,0.02309]
[1762141927796,0.06222,108140.0,108130.0,0.02309]
[1762141927996,0.05831,108130.0,108120.0,0.04600068]
[1762141928200,0.06431,108130.0,108120.0,0.11247701]
[1762141928402,0.06431,108130.0,108120.0,0.06654701]
[1762141928788,0.05831,108130.0,108120.0,7.068e-05]
[1762141928994,0.88951,108130.0,108120.0,7.068e-05]
[1762141929188,0.89251,108130.0,108120.0,7.068e-05]
[1762141929400,0.04518,108100.0,108090.0,0.01236794]
[1762141929604,0.02285,108080.0,108070.0,0.12898658]
[1762141929902,0.04518,108090.0,108080.0,0.05876]
[1762141930102,0.3216,108110.0,108080.0,0.05876]
[1762141930289,0.04518,108110.0,108100.0,0.02309]
[1762141930492,0.36678,108110.0,108100.0,0.05876]
[1762141931004,0.04518,108090.0,108080.0,0.02309]
[1762141931189,0.04518,108090.0,108080.0,0.05876]
[1762141931797,0.04218,108090.0,108080.0,0.05876]
[1762141931997,0.04218,108090.0,108080.0,0.02309]
[1762141932299,0.0925264,108080.0,108070.0,0.04593]
[1762141932605,0.1377019,108090.0,108080.0,0.06176]
[1762141933605,0.1377019,108090.0,108080.0,0.003]
[1762141933805,0.1377019,108090.0,108080.0,0.06176]
[1762141934097,0.1377019,108090.0,108080.0,0.05876]
[1762141934896,0.1377019,108090.0,108080.0,0.06076]
[1762141935412,0.14665691,108100.0,108090.0,0.04365]
[1762141936607,0.0925138,108100.0,108090.0,0.04465]
[1762141936807,0.1371938,108100.0,108090.0,0.04465]
[1762141937299,0.1166038,108100.0,108090.0,0.04465]
[1762141937505,0.1381938,108100.0,108090.0,0.04465]
[1762141938294,0.1166038,108100.0,108090.0,0.04465]
[1762141938501,0.0935138,108100.0,108090.0,0.04465]
[1762141938804,0.1381938,108100.0,108090.0,0.02254]
[1762141939007,0.27064437,108100.0,108090.0,0.001]
[1762141939307,0.1381938,108100.0,108090.0,0.001]
[1762141939609,0.27064437,108100.0,108090.0,0.001]